bitfinex-derivatives/quotes_ETHF0:USTF0_20260123
["timestamp","ask_amount","ask_price","bid_price","bid_amount"]
[1769190214104,6.84825583,3003.7,3002.2,0.16674]
[1769190214302,3.51425583,3003.7,3002.2,0.16674]
[1769190214504,1.921,3003.6,3002.2,0.16674]
[1769190214703,3.51425583,3003.7,3002.2,0.16674]
[1769190214903,1.921,3003.6,3002.2,0.16674]
[1769190215301,3.51425583,3003.5,3002.2,0.16674]
[1769190217514,1.921,3003.6,3002.2,0.16674]
[1769190217515,1.924,3003.6,3002.2,0.16674]
[1769190218517,5.43825583,3003.6,3002.2,0.16674]
[1769190219112,3.51425583,3003.5,3001.9,0.00254567]
[1769190219820,0.16669,3003.4,3001.9,0.00254567]
[1769190220011,8.77525583,3003.3,3001.9,0.00254567]
[1769190220212,3.51425583,3003.2,3001.9,0.00254567]
[1769190220507,1.928,3003.1,3001.9,0.00254567]
[1769190220717,1.93219498,3003.1,3001.9,0.00254567]
[1769190221314,0.00419498,3003.1,3002.0,0.16676]
[1769190222117,0.00419498,3003.1,3002.3,0.16674]
[1769190223107,5.44325583,3003.8,3002.3,0.16674]
[1769190223310,3.51425583,3003.7,3002.3,0.16674]
[1769190224020,3.51723916,3003.7,3002.3,0.16674]
[1769190224505,3.51723916,3003.7,3001.9,0.00254567]
[1769190225518,3.51723916,3003.7,3002.0,0.16676]
[1769190226013,3.51425583,3003.5,3002.0,0.16676]
[1769190226314,3.51425583,3003.5,3001.9,0.00254567]
[1769190228016,3.51425583,3003.5,3001.9,0.16930567]
[1769190228223,1.937,3003.4,3001.9,0.16930567]
[1769190229022,1.937,3003.4,3002.0,0.16676]
[1769190229221,0.00298333,3003.7,3002.2,0.16675]
[1769190229423,1.94198333,3003.7,3002.3,0.16674]
[1769190229724,3.51425583,3003.6,3002.3,0.16674]
[1769190230022,3.51425583,3003.6,3001.9,3.61541343]
[1769190230825,3.51425583,3003.6,3001.9,3.78217343]
[1769190231525,3.51425583,3003.6,3001.9,0.16930567]
[1769190232716,5.277,3003.5,3001.9,0.16930567]
[1769190232915,1.28320483,3003.7,3001.9,0.16930567]
[1769190232916,0.00298333,3003.7,3001.9,3.61541343]
[1769190233224,0.00298333,3003.7,3002.3,0.16674]
[1769190233623,0.00298333,3003.7,3002.4,0.16673]
[1769190234027,3.51425583,3003.6,3001.9,2.32809371]
[1769190234221,3.51425583,3003.6,3001.9,0.00254567]
[1769190234529,1.944,3003.5,3001.9,0.00254567]
[1769190234726,3.51425583,3003.6,3001.9,0.00254567]
[1769190234925,5.45825583,3003.6,3002.2,0.16675]
[1769190236027,3.51425583,3003.6,3002.2,0.16675]
[1769190236226,5.45925583,3003.6,3002.2,0.16675]
[1769190237331,3.51425583,3003.6,3002.3,0.16674]
[1769190239519,1.94998333,3003.7,3002.3,0.16674]
[1769190239830,3.51425583,3003.6,3002.3,0.16674]
[1769190240227,13.96950858,3003.5,3001.9,0.00254567]
[1769190240425,3.51425583,3003.4,3001.9,0.00254567]
[1769190241230,1.952,3003.5,3002.0,0.16676]
[1769190241534,1.952,3003.6,3001.9,3.61541343]
[1769190241730,1.952,3003.6,3001.9,5.94096147]
[1769190241926,1.952,3003.6,3002.3,0.16674]
[1769190242231,5.58914408,3003.6,3002.3,0.16674]
[1769190242428,3.63714408,3003.5,3001.9,0.00254567]
[1769190242830,3.80382408,3003.5,3001.9,0.00254567]
[1769190243027,3.63714408,3003.3,3001.9,0.00254567]
[1769190243530,5.59514408,3003.2,3001.9,0.00254567]
[1769190243827,3.63714408,3003.2,3001.9,0.00254567]
[1769190244028,1.959,3003.1,3001.9,0.00254567]
[1769190244226,0.00298333,3003.7,3002.4,0.16674]
[1769190244431,3.64012741,3003.7,3002.4,0.16674]
[1769190245136,1.96198333,3003.7,3002.6,0.16672]
[1769190247544,0.00298333,3003.7,3002.6,0.16672]
[1769190248340,3.4912942,3003.7,3002.6,0.16672]
[1769190248541,3.4912942,3003.7,3002.1,2.32554804]
[1769190248746,3.4912942,3003.7,3002.0,0.16676]
[1769190248943,3.4912942,3003.7,3002.1,0.16675]
[1769190249143,1.963,3003.6,3002.1,0.16675]
[1769190249346,5.45131087,3003.6,3002.1,0.16675]
[1769190249540,3.48831087,3003.5,3002.1,0.16675]
[1769190255255,13.96950858,3003.4,3002.3,0.16674]
[1769190255456,0.00298333,3003.7,3002.3,0.16674]
[1769190255847,0.00298333,3003.7,3002.4,0.16673]
[1769190256156,0.00298333,3003.7,3002.4,2.32554804]
[1769190256453,0.00498936,3004.1,3003.1,0.16669]
[1769190256758,3.48831087,3005.0,3003.4,0.16668]
[1769190257158,3.48831087,3005.0,3003.5,1.4469015]
[1769190257454,3.49097184,3005.0,3003.6,0.16667]
[1769190258550,0.00266097,3005.0,3003.6,0.16667]
[1769190259459,0.00266097,3005.0,3003.5,1.2802215]
[1769190259660,0.00266097,3005.0,3003.5,5.04576107]
[1769190260551,0.00266097,3005.0,3003.8,0.16666]
[1769190260753,3.49097184,3005.0,3003.2,0.16669]
[1769190261253,3.49097184,3005.0,3003.4,0.16668]
[1769190262559,3.49097184,3005.0,3003.1,3.76553957]
[1769190263258,3.49097184,3005.0,3003.1,3.93222957]
[1769190263559,3.65492087,3004.7,3002.7,0.00498936]
[1769190263857,3.65492087,3004.7,3002.8,0.16671]
[1769190264247,3.48831087,3004.7,3002.8,3.76553957]
[1769190264759,3.48831087,3004.7,3003.2,0.16669]
[1769190265259,3.48831087,3004.5,3002.7,0.00498936]
[1769190265447,3.65493087,3004.5,3002.7,0.00498936]
[1769190267759,1.975,3004.4,3002.7,0.00498936]
[1769190267955,5.46331087,3004.4,3002.7,0.00498936]
[1769190268655,3.48831087,3004.3,3002.7,0.00498936]
[1769190269757,3.65494087,3004.3,3002.7,0.00498936]
[1769190271561,3.48831087,3003.7,3002.0,0.16676]
[1769190271763,3.48831087,3003.7,3002.1,0.16675]
[1769190271962,5.47031087,3003.7,3002.1,0.16675]
[1769190272263,3.57918616,3003.6,3002.1,0.16675]
[1769190274257,3.57918616,3003.6,3001.9,0.00254567]
[1769190274464,5.02607766,3003.6,3001.9,0.00254567]
[1769190274658,3.57918616,3003.5,3001.9,0.00254567]
[1769190275863,5.323,3003.4,3001.9,0.00254567]
[1769190276061,3.57918616,3003.3,3001.9,0.00254567]
[1769190279263,3.57918616,3003.2,3001.9,0.16930567]
[1769190279965,3.57918616,3003.2,3002.0,0.16676]
[1769190282069,3.57918616,3003.2,3002.1,0.16675]
[1769190282268,1.995,3003.5,3002.1,0.16675]
[1769190282768,1.996,3003.6,3002.1,0.16675]
[1769190282968,5.57518616,3003.6,3002.1,0.16675]
[1769190283470,0.00498936,3003.8,3001.9,3.75754283]
[1769190283664,0.00498936,3003.8,3002.5,0.16673]
[1769190283965,0.00498936,3003.8,3002.1,3.75499716]
[1769190285259,13.96950858,3003.7,3002.2,0.16675]
[1769190285460,3.57918616,3003.6,3002.2,0.16675]
[1769190287668,0.00498936,3003.8,3002.0,3.75499716]
[1769190288271,0.00498936,3003.8,3002.5,0.16673]
[1769190289483,0.00498936,3003.8,3002.6,0.16672]
[1769190290278,0.00498936,3003.8,3002.8,0.16671]
[1769190296383,0.00498936,3003.8,3002.4,3.75499716]
[1769190296580,0.00498936,3003.8,3002.2,0.16675]
[1769190296581,3.58417552,3003.8,3002.2,0.16675]
[1769190300184,13.96950858,3003.7,3002.0,3.75499716]
[1769190300578,0.00498936,3003.8,3002.1,3.75499716]
[1769190301187,0.00498936,3003.8,3002.2,3.75499716]
[1769190301487,0.00498936,3003.8,3002.6,0.16672]
[1769190301878,0.00498936,3003.8,3002.8,0.16671]
[1769190302485,0.00498936,3003.8,3003.0,0.1667]
[1769190303075,0.00498936,3003.8,3002.5,0.16673]
[1769190303384,0.00498936,3003.8,3002.7,0.16672]
[1769190304979,0.00498936,3003.8,3002.8,0.16671]
[1769190305181,3.55438566,3005.2,3002.9,5.80439318]
[1769190305384,3.55438566,3005.2,3003.1,3.46485632]
[1769190305584,3.55438566,3005.2,3003.1,5.79940382]
[1769190306295,3.55438566,3005.2,3003.2,3.46485632]
[1769190306588,3.55438566,3005.2,3003.5,0.16667]
[1769190306782,2.001,3005.6,3003.6,3.9467137]
[1769190306984,2.001,3005.6,3003.7,0.16666]
[1769190307184,3.69177409,3005.7,3003.9,0.16665]
[1769190307387,3.69177409,3005.7,3004.0,0.16664]
[1769190307587,3.69177409,3005.7,3003.0,5.9450515]
[1769190307588,2.001,3006.1,3004.2,0.16663]
[1769190307793,2.001,3006.1,3004.3,0.16663]
[1769190307999,2.001,3006.1,3004.4,0.16663]
[1769190308194,2.001,3006.1,3004.6,0.16661]
[1769190308487,3.69466733,3006.1,3004.9,0.00498936]
[1769190309480,0.00289324,3006.1,3004.9,0.00498936]
[1769190309881,0.00289324,3006.1,3005.1,0.16658]
[1769190310091,0.00289324,3006.1,3005.2,0.16658]
[1769190310289,3.69177409,3007.1,3005.3,0.16657]
[1769190310494,3.69177409,3007.1,3005.6,0.16656]
[1769190310792,3.69177409,3007.1,3005.1,3.7800437]
[1769190310987,3.69177409,3007.1,3005.5,0.16656]
[1769190311294,0.00363211,3007.1,3005.5,0.16656]
[1769190312183,0.00363211,3007.1,3005.8,0.16654]
[1769190312386,0.00363211,3007.1,3005.8,3.9465837]
[1769190312587,0.00363211,3007.1,3005.8,0.16654]
[1769190314095,0.00363211,3007.1,3006.0,3.9465737]
[1769190314692,3.333,3007.6,3006.1,3.9465737]
[1769190314995,3.333,3007.6,3006.2,3.9465737]
[1769190315194,3.333,3007.6,3006.3,0.16652]
[1769190315495,13.96950858,3007.5,3006.6,0.00498936]
[1769190315694,13.97232824,3007.5,3006.6,0.00498936]
[1769190315889,0.00281966,3007.5,3006.6,0.00498936]
[1769190316097,3.69459375,3007.5,3005.6,3.9466037]
[1769190316495,3.69676345,3007.4,3005.6,3.9466037]
[1769190317196,3.69676345,3007.4,3005.7,0.16655]
[1769190317392,3.69676345,3007.4,3005.7,3.9465937]
[1769190317798,3.69676345,3007.4,3005.8,0.16655]
[1769190318306,0.00498936,3007.4,3005.9,3.7800437]
[1769190318505,0.00498936,3007.4,3006.1,0.16653]
[1769190323111,0.00498936,3007.4,3006.1,3.7800437]
[1769190323416,0.00498936,3007.4,3006.3,3.9465537]
[1769190323617,0.00498936,3007.4,3006.3,3.7800437]
[1769190323816,0.00498936,3007.4,3006.5,0.1665]
[1769190324012,0.00281966,3007.5,3006.6,0.1665]
[1769190325514,3.69177409,3008.6,3006.6,3.7800437]
[1769190325709,3.69177409,3008.6,3007.2,0.16647]
[1769190326315,3.69177409,3008.6,3006.6,3.7800437]
[1769190326515,3.69504034,3008.6,3006.7,0.1665]
[1769190327519,3.86143034,3008.6,3006.8,0.16649]
[1769190327720,3.69504034,3008.6,3007.1,0.16648]
[1769190328923,3.69504034,3008.6,3006.6,3.78421117]
[1769190329222,3.69504034,3008.6,3006.6,3.95071117]
[1769190331020,17.66128267,3008.5,3006.7,0.1665]
[1769190331323,3.69177409,3008.4,3006.7,0.1665]
[1769190332819,5.336,3009.0,3006.8,3.49764814]
[1769190333020,3.77562129,3009.2,3007.5,0.16645]
[1769190333623,3.77562129,3009.2,3007.4,3.49764814]
[1769190333624,3.77562129,3009.7,3007.8,0.16644]
[1769190334020,3.77830896,3009.7,3008.1,0.16642]
[1769190334519,0.00268767,3009.7,3008.0,3.5026375]
[1769190334720,0.00268767,3009.7,3008.3,0.16641]
[1769190335121,0.00268767,3009.7,3008.4,0.1664]
[1769190335315,5.78562129,3010.7,3008.7,3.66403814]
[1769190335521,3.33,3010.8,3009.1,0.16636]
[1769190335721,3.33,3010.8,3009.2,0.16636]
[1769190335927,3.77562129,3010.7,3008.9,3.49764814]
[1769190336228,3.94190129,3010.7,3008.5,0.1664]
[1769190336523,0.00311316,3010.7,3008.6,3.49764814]
[1769190336723,0.00311316,3010.7,3009.2,3.66400814]
[1769190337425,0.00311316,3010.7,3009.3,3.66399814]
[1769190338024,0.00311316,3010.7,3009.7,0.00498936]
[1769190340626,3.77562129,3011.5,3009.7,3.5026375]
[1769190341019,3.77562129,3011.5,3009.7,3.6689675]
[1769190341225,3.77562129,3011.5,3009.7,0.00498936]
[1769190341430,6.61903741,3011.7,3009.7,0.00498936]
[1769190341431,3.77562129,3011.3,3009.7,0.00498936]
[1769190341724,0.00304587,3011.3,3009.7,3.5026375]
[1769190343526,0.00304587,3011.3,3010.1,3.49764814]
[1769190343727,0.00304587,3011.3,3010.3,0.16629]
[1769190344230,0.00304587,3011.3,3010.4,0.16629]
[1769190344430,3.77562129,3012.3,3010.4,0.16629]
[1769190345233,13.96950858,3012.2,3010.5,3.49764814]
[1769190345426,13.97351753,3012.2,3010.5,3.49764814]
[1769190345626,0.00400895,3012.2,3010.6,0.16628]
[1769190345927,0.00400895,3012.2,3010.6,3.66392814]
[1769190348831,0.00400895,3012.2,3010.6,3.49764814]
[1769190350335,3.77963024,3012.2,3010.2,0.1663]
[1769190350831,3.77963024,3012.2,3010.3,3.66394814]
[1769190354138,3.77963024,3012.2,3010.4,4.77084175]
[1769190354732,0.00400895,3012.2,3010.6,3.49764814]
[1769190355334,0.00400895,3012.2,3010.7,0.16628]
[1769190355529,0.00400895,3012.2,3010.7,0.00258984]
[1769190355742,3.77963024,3012.2,3010.7,0.00258984]
[1769190357240,3.77562129,3011.7,3010.7,0.00258984]
[1769190358642,3.77963024,3012.2,3010.7,0.00258984]
[1769190359642,3.77562129,3011.9,3010.7,0.00258984]
[1769190360241,13.96950858,3011.8,3010.7,0.00258984]
[1769190360744,3.94184129,3011.9,3010.7,0.00258984]
[1769190360948,3.77562129,3011.8,3009.8,3.49764814]
[1769190361442,1.43941361,3011.9,3009.7,0.00498936]
[1769190361443,3.77562129,3011.6,3009.7,0.00498936]
[1769190361849,3.77562129,3011.6,3009.7,0.00878995]
[1769190362549,9.28485129,3011.6,3009.7,3.52334331]
[1769190363043,3.77562129,3011.6,3010.0,0.16631]
[1769190363241,3.6921407,3012.1,3010.0,3.51455336]
[1769190363441,3.6921407,3012.1,3010.4,3.68084336]
[1769190364746,3.8583407,3012.1,3009.9,3.68087336]
[1769190365148,3.6921407,3011.9,3009.9,3.68087336]
[1769190365853,3.6921407,3011.9,3010.0,0.16631]
[1769190367645,2.02,3011.8,3010.0,0.16631]
[1769190367846,5.58994057,3011.8,3010.0,0.16631]
[1769190368052,3.56994057,3011.7,3010.0,0.16631]
[1769190370446,2.024,3011.6,3010.0,0.16631]
[1769190370849,5.59394057,3011.6,3010.0,0.16631]
[1769190371055,3.56994057,3011.5,3009.7,0.00878995]
[1769190371362,3.73617057,3011.5,3009.7,0.00878995]
[1769190371559,0.16624,3011.4,3009.7,0.00878995]
[1769190371752,3.56994057,3011.3,3009.7,0.00878995]
[1769190372059,3.56994057,3011.3,3008.9,6.01789662]
[1769190372060,3.56994057,3010.7,3008.8,2.3345475]
[1769190372357,3.56994057,3010.5,3008.5,3.6656373]
[1769190373157,3.56994057,3010.5,3008.5,3.66864709]
[1769190373454,3.82975433,3010.5,3008.5,0.16940979]
[1769190373756,3.99604433,3010.5,3008.5,0.16940979]
[1769190374858,3.56994057,3010.3,3008.5,0.00300979]
[1769190375361,0.00498099,3009.8,3008.5,0.00300979]
[1769190375557,3.56994057,3009.7,3008.5,0.00300979]
[1769190375758,13.96950858,3009.7,3008.5,0.00300979]
[1769190375958,0.00877145,3009.8,3008.5,0.00300979]
[1769190377149,3.57871202,3009.8,3008.5,0.00300979]
[1769190378361,0.00877145,3009.8,3008.5,0.00300979]
[1769190380458,3.57871202,3009.8,3008.5,0.00300979]
[1769190382955,3.74504202,3009.8,3008.5,0.00300979]
[1769190383762,2.042,3009.7,3008.5,0.00300979]
[1769190384858,3.56994057,3009.6,3008.5,0.00300979]
[1769190386361,3.56994057,3009.3,3007.4,0.16646]
[1769190387356,3.56994057,3008.9,3007.4,0.00324632]
[1769190387563,3.56994057,3008.6,3007.4,0.00324632]
[1769190387759,3.56994057,3008.5,3007.4,0.00324632]
[1769190388068,3.56994057,3008.5,3006.3,3.4992373]
[1769190388261,3.56994057,3008.1,3006.2,0.16652]
[1769190388671,3.73636057,3008.1,3006.2,0.16652]
[1769190388868,3.73636057,3008.1,3006.2,0.17076933]
[1769190389069,0.00498099,3007.5,3006.2,0.17076933]
[1769190389270,0.00915689,3007.5,3006.2,0.17076933]
[1769190389676,3.57909746,3007.5,3006.2,0.00424933]
[1769190390561,3.56994057,3007.3,3006.2,0.00424933]
[1769190390874,3.56994057,3007.3,3005.3,3.4992373]
[1769190391660,3.56994057,3007.3,3005.3,3.5031174]
[1769190392070,3.56994057,3007.3,3005.3,0.0038801]
[1769190392371,3.46240088,3007.1,3005.3,0.0038801]
[1769190392884,3.46240088,3006.8,3005.3,0.0038801]
[1769190393179,3.327,3007.4,3003.2,0.16669]
[1769190393180,1.43974361,3005.8,3003.2,0.16669]
[1769190393360,3.46240088,3005.2,3002.6,3.58031236]
[1769190393564,3.46240088,3005.0,3002.6,3.74704236]
[1769190393872,3.46240088,3005.0,3002.4,1.27319361]
[1769190393873,3.46240088,3005.0,3002.8,3.58031236]
[1769190394168,0.003186,3005.0,3003.3,0.16669]
[1769190394372,0.003186,3005.0,3003.3,3.74700236]
[1769190394778,0.003186,3005.0,3003.5,3.74698236]
[1769190396773,0.003186,3005.0,3003.8,3.58031236]
[1769190398675,3.46240088,3006.2,3004.2,3.58031236]
[1769190399679,3.46493822,3006.2,3004.2,3.58031236]
[1769190399873,3.46493822,3006.2,3004.4,3.74693236]
[1769190400073,0.00253734,3006.2,3004.4,3.74693236]
[1769190401177,3.46493822,3006.2,3003.9,3.58031236]
[1769190401373,3.46240088,3005.9,3003.6,0.16667]
[1769190401572,3.4673904,3005.6,3003.4,3.58031236]
[1769190401978,3.46240088,3005.5,3003.4,3.58031236]
[1769190404375,3.46240088,3005.4,3003.4,0.16668]
[1769190404581,3.46240088,3005.4,3002.9,3.58031236]
[1769190405483,3.46240088,3005.4,3002.9,3.74702236]
[1769190406182,3.46240088,3005.2,3002.9,3.74702236]
[1769190407982,3.46240088,3005.0,3002.9,0.16671]
[1769190409183,3.46240088,3004.8,3002.9,0.16671]
[1769190410881,3.62902088,3004.5,3002.8,0.0033873]
[1769190412382,3.89158411,3004.5,3002.8,0.0033873]
[1769190413579,3.89158411,3004.5,3002.8,3.58369966]
[1769190413580,3.46240088,3004.5,3002.8,3.58369966]
[1769190414384,3.46240088,3004.5,3002.8,3.75040966]
[1769190414889,5.391,3004.7,3002.9,3.74702236]
[1769190415286,6.96099088,3005.0,3003.0,0.1667]
[1769190415487,9.02099088,3005.0,3003.1,0.1667]
[1769190415793,3.46240088,3004.9,3003.1,0.1667]
[1769190417691,3.62900088,3004.9,3002.9,3.58031236]
[1769190418084,3.62900088,3004.9,3002.9,3.74702236]
[1769190419286,5.65412142,3005.0,3002.8,0.0033873]
[1769190419287,3.62901088,3004.7,3002.8,0.0033873]
[1769190419492,0.00498952,3004.2,3002.8,0.0033873]
[1769190420089,3.4673904,3004.2,3002.8,0.0033873]
[1769190420290,13.96950858,3004.1,3002.8,0.0033873]
[1769190420794,13.96950858,3004.1,3002.8,3.58369966]
[1769190420994,13.96950858,3004.1,3003.0,0.1667]
[1769190421195,0.00498952,3004.2,3003.1,0.1667]
[1769190421791,3.46240088,3005.3,3003.7,0.16666]
[1769190422294,7.26350619,3005.8,3003.9,0.16665]
[1769190422592,2.071,3005.7,3004.0,0.16665]
[1769190422997,3.93050619,3005.8,3004.0,3.86604462]
[1769190423198,0.00253734,3006.2,3004.0,3.69939462]
[1769190423495,2.07453734,3006.2,3004.3,3.86602462]
[1769190423795,3.76395619,3006.1,3004.3,3.86602462]
[1769190423998,3.76395619,3006.1,3004.5,0.16662]
[1769190424300,0.00253734,3006.2,3004.9,0.00498952]
[1769190424592,0.00253734,3006.2,3005.0,3.86598462]
[1769190424793,0.00253734,3006.2,3005.0,3.70224854]
[1769190425002,0.00253734,3006.2,3005.2,0.16658]
[1769190425294,0.00253734,3006.2,3005.3,3.69939462]
[1769190425500,3.76395619,3007.1,3005.0,0.00285392]
[1769190425898,3.76395619,3007.1,3005.0,3.70224854]
[1769190426091,3.76395619,3007.5,3005.4,3.69939462]
[1769190426290,5.83595619,3007.5,3005.6,3.86595462]
[1769190426597,3.76807964,3007.5,3005.8,3.86594462]
[1769190426793,3.76807964,3007.5,3006.0,0.16654]
[1769190427093,0.00412345,3007.5,3006.0,3.59463793]
[1769190427298,0.00412345,3007.5,3006.3,3.59461793]
[1769190427498,0.00412345,3007.5,3006.4,0.16651]
[1769190427696,0.00412345,3007.5,3006.5,3.59460793]
[1769190427896,3.463621,3008.6,3006.7,0.1665]
[1769190428597,3.463621,3009.3,3007.1,3.42809793]
[1769190428800,3.46607374,3009.3,3007.5,3.42809793]
[1769190429000,3.46607374,3009.3,3007.6,0.16645]
[1769190429501,3.46607374,3009.3,3008.1,0.00498952]
[1769190430400,0.00245274,3009.3,3008.1,0.00498952]
[1769190430904,0.00245274,3009.3,3008.2,0.16641]
[1769190431500,0.00245274,3009.3,3008.1,0.00498952]
[1769190433196,0.00245274,3009.3,3008.1,3.43308745]
[1769190434397,0.00245274,3009.3,3008.2,0.16641]
[1769190435496,3.463621,3010.2,3008.2,3.42809793]
[1769190435697,3.463621,3010.2,3008.5,0.1664]
[1769190436592,3.46620176,3010.2,3008.5,0.1664]
[1769190437305,3.46620176,3010.2,3008.2,3.42809793]
[1769190437504,0.00258076,3010.2,3008.7,0.16638]
[1769190438504,0.00258076,3010.2,3008.9,0.16637]
[1769190438705,0.00258076,3010.2,3009.2,0.16636]
[1769190439100,0.00258076,3010.2,3009.3,0.16635]
[1769190439506,0.00258076,3010.2,3008.6,3.59448793]
[1769190439705,0.00258076,3010.2,3008.6,0.16639]
[1769190439897,3.46620176,3010.2,3008.6,0.16639]
[1769190442407,3.46620176,3010.2,3008.1,0.00498952]
[1769190442613,3.46620176,3010.2,3008.3,0.16641]
[1769190442909,3.463621,3010.1,3008.4,0.1664]
[1769190443708,3.629931,3010.1,3008.1,0.00498952]
[1769190444110,3.629931,3010.1,3008.1,0.17140952]
[1769190444307,3.463621,3009.9,3008.2,0.16641]
[1769190445201,3.463621,3009.9,3008.4,0.1664]
[1769190445401,3.463621,3009.9,3008.1,0.00498952]
[1769190445402,3.463621,3009.9,3008.5,0.1664]
[1769190446001,3.463621,3009.9,3008.1,0.00498952]
[1769190446206,3.463621,3009.9,3008.1,0.17140952]
[1769190446510,3.463621,3009.9,3008.2,0.16641]
[1769190446704,3.463621,3009.9,3008.3,0.16641]
[1769190447014,3.463621,3009.9,3008.5,0.16639]
[1769190447310,3.463621,3009.9,3008.6,0.16639]
[1769190448101,3.463621,3009.9,3008.1,0.00498952]
[1769190449408,3.463621,3009.7,3008.1,0.00498952]
[1769190449601,3.629951,3009.7,3008.1,0.00498952]
[1769190450108,3.463621,3009.5,3008.1,0.00498952]
[1769190451406,5.540621,3009.4,3008.1,0.00498952]
[1769190451611,3.463621,3009.3,3008.1,0.00498952]
[1769190452107,3.463621,3009.3,3007.5,0.00288224]
[1769190453407,3.629981,3009.3,3007.5,0.00288224]
[1769190454607,3.76652542,3008.6,3007.5,0.00288224]
[1769190458116,3.76652542,3008.6,3006.8,0.16649]
[1769190459017,3.76652542,3008.6,3006.9,0.16649]
[1769190459218,3.76652542,3008.6,3006.9,0.17080811]
[1769190459616,3.93291542,3008.6,3006.9,0.00431811]
[1769190459916,0.26797883,3008.7,3006.3,0.16652]
[1769190459917,3.76652542,3008.3,3006.3,0.16652]
[1769190460920,3.76652542,3008.3,3006.3,0.17040755]
[1769190461620,3.93293542,3008.3,3006.3,0.17040755]
[1769190461823,3.76652542,3007.8,3005.7,3.44992062]
[1769190462117,1.54711536,3008.7,3006.2,0.16652]
[1769190462118,3.76652542,3008.0,3006.2,0.16652]
[1769190462813,0.00498952,3007.4,3006.2,0.17023474]
[1769190463424,0.00498952,3007.4,3006.2,0.00371474]
[1769190463621,0.00498952,3007.4,3006.7,0.1665]
[1769190463821,0.00498952,3007.4,3006.8,0.16649]
[1769190464120,0.00281568,3008.0,3006.8,0.16649]
[1769190464723,3.7693411,3008.0,3006.8,0.16649]
[1769190465120,9.94085117,3007.9,3006.8,0.16649]
[1769190465526,13.70737659,3007.9,3006.8,0.16649]
[1769190466326,13.70737659,3007.9,3006.7,0.00498952]
[1769190466327,3.76652542,3007.8,3006.7,0.00498952]
[1769190467926,0.00498952,3007.6,3006.2,0.17023474]
[1769190468130,3.76652542,3007.5,3006.2,0.00371474]
[1769190468831,0.00498952,3007.6,3006.4,0.16651]
[1769190469027,0.00498952,3007.6,3006.5,0.16651]
[1769190469230,0.00498952,3007.6,3006.6,0.1665]
[1769190470126,0.00498952,3007.6,3006.8,0.16649]
[1769190470328,0.00281568,3008.0,3006.3,3.44992062]
[1769190470525,0.00281568,3008.0,3006.8,0.00498952]
[1769190471424,0.00281568,3008.0,3006.8,3.45491014]
[1769190471624,0.00281568,3008.0,3007.3,0.16646]
[1769190473529,0.00281568,3008.0,3006.8,0.00498952]
[1769190474127,0.00281568,3008.0,3006.8,0.17147952]
[1769190474323,0.00281568,3008.0,3006.9,0.16648]
[1769190474529,0.00281568,3008.0,3006.8,3.45491014]
[1769190475037,0.00281568,3008.0,3007.0,0.16648]
[1769190475535,0.00281568,3008.0,3007.1,0.16648]
[1769190480538,0.00281568,3008.0,3006.8,0.00498952]
[1769190480737,3.76652542,3007.8,3006.8,0.00498952]
[1769190481526,3.76652542,3007.5,3006.2,0.00371474]
[1769190481927,3.76652542,3007.4,3005.6,0.16656]
[1769190482333,3.60678421,3007.2,3005.6,0.16656]
[1769190482932,3.60678421,3007.2,3005.6,0.16909837]
[1769190483132,0.00498952,3007.6,3006.2,0.16653]
[1769190483537,3.61177373,3007.6,3006.2,0.16653]
[1769190484939,3.61177373,3007.6,3005.6,0.00253837]
[1769190485139,3.60678421,3007.4,3005.6,0.00253837]
[1769190485337,3.77324421,3007.4,3005.6,0.00253837]
[1769190486039,5.70478421,3007.3,3005.6,0.00253837]
[1769190486231,3.60678421,3007.2,3005.6,0.00253837]
[1769190486638,5.70578421,3007.2,3005.6,0.16909837]
[1769190486844,3.68638512,3007.1,3005.6,0.16909837]
[1769190487647,3.68638512,3007.1,3005.7,0.16655]
[1769190488447,3.68638512,3007.1,3005.8,0.16655]
[1769190488748,3.329,3007.4,3005.7,3.63520967]
[1769190489049,3.329,3007.4,3006.3,0.16652]
[1769190491145,3.68638512,3007.3,3005.8,0.16655]
[1769190492246,3.68638512,3007.3,3005.9,0.16654]
[1769190493643,3.68638512,3007.3,3005.6,0.00253837]
[1769190494640,3.68638512,3007.3,3006.0,0.16653]
[1769190495246,3.68638512,3007.1,3005.6,0.00253837]
[1769190499455,3.68638512,3007.1,3005.7,0.16655]
[1769190499746,3.68638512,3007.1,3005.8,0.16655]
[1769190500346,3.68638512,3007.1,3005.6,0.00253837]
[1769190501345,3.68638512,3006.7,3005.0,2.3345475]
[1769190501551,3.68638512,3006.7,3004.8,0.1666]
[1769190502553,0.00498952,3006.1,3004.9,0.1666]
[1769190503154,0.00498952,3006.1,3005.0,0.16659]
[1769190504558,0.00498952,3006.1,3005.2,0.16658]
[1769190508157,3.69137464,3006.1,3005.2,0.16658]
[1769190508558,0.00498952,3006.1,3005.2,0.16658]
[1769190509660,3.68638512,3006.9,3005.3,0.17155952]
[1769190510559,3.68638512,3006.7,3005.3,0.17155952]
[1769190511656,3.68638512,3006.5,3004.8,0.00397055]
[1769190511865,3.68638512,3006.2,3004.8,0.00397055]
[1769190514666,3.94523352,3006.2,3004.8,0.00397055]
[1769190516267,3.68638512,3006.2,3004.8,0.00397055]
[1769190518465,3.45460753,3005.5,3003.4,0.16668]
[1769190518660,3.45460753,3005.3,3003.4,0.16668]
[1769190519268,3.45959705,3004.7,3003.4,0.16668]
[1769190519568,3.45959705,3004.7,3003.4,0.16967987]
[1769190519569,3.46295196,3004.7,3003.4,0.16967987]
[1769190520869,0.00834443,3004.7,3003.4,0.00299987]
[1769190521068,0.00834443,3004.7,3003.7,0.16666]
[1769190522170,0.00834443,3004.7,3003.8,0.16666]
[1769190523073,0.00834443,3004.7,3003.4,0.00299987]
[1769190523074,3.45460753,3005.7,3004.2,0.16663]
[1769190523274,3.45460753,3005.7,3004.3,0.16663]
[1769190523675,3.45460753,3005.7,3004.4,0.16662]
[1769190523975,3.45745547,3005.7,3004.4,0.16662]
[1769190525383,9.94085117,3005.6,3004.4,0.16662]
[1769190527584,3.45745547,3005.7,3004.4,0.16662]
[1769190531686,3.45745547,3005.7,3003.9,0.00498952]
[1769190532580,3.62401547,3005.7,3003.9,0.00498952]
[1769190533288,3.62401547,3005.7,3003.9,0.17163952]
[1769190533583,3.45745547,3005.7,3003.9,0.00498952]
[1769190533784,3.45745547,3005.7,3004.1,0.16664]
[1769190534881,0.00284794,3005.7,3004.5,0.16662]
[1769190535885,3.45745547,3005.7,3004.5,0.16662]
[1769190539485,3.45745547,3005.7,3004.0,2.3345475]
[1769190539886,3.45745547,3005.7,3003.9,0.17163952]
[1769190540089,3.45460753,3005.5,3003.9,0.17163952]